bitfinex/quotes_ETHUSD_20250110
["timestamp","ask_amount","ask_price","bid_price","bid_amount"]
[1736477400143,0.7474,3257.7,3256.9,3.07031]
[1736477400443,0.7474,3257.6,3257.0,3.07021]
[1736477400648,0.7474,3257.6,3257.0,0.7796]
[1736477400851,0.7474,3257.6,3257.1,0.03070027]
[1736477401155,0.7474,3257.6,3257.3,3.07002]
[1736477401734,0.7474,3257.6,3257.0,0.7796]
[1736477402067,0.7474,3257.6,3256.6,1.0711]
[1736477402206,0.7474,3257.6,3256.9,3.07038]
[1736477402751,0.7474,3257.6,3256.7,0.41418]
[1736477403064,5.28,3257.7,3256.8,0.03069872]
[1736477403204,5.28,3257.7,3257.4,3.06987]
[1736477405052,0.7474,3257.6,3256.9,3.07039]
[1736477405216,0.7474,3257.6,3256.7,0.41418]
[1736477405544,0.7474,3257.6,3257.0,3.07024]
[1736477405742,0.7474,3257.6,3256.8,3.07047]
[1736477407319,0.7474,3257.4,3256.6,0.243]
[1736477407526,0.7474,3257.4,3256.6,3.31364]
[1736477407853,0.7474,3257.4,3256.6,0.243]
[1736477408332,6.0274,3257.7,3256.8,0.7789]
[1736477408538,0.7474,3257.7,3257.5,3.06981]
[1736477408852,3.7474,3258.3,3257.5,3.376791]
[1736477409012,3.7474,3258.3,3257.5,3.06981]
[1736477409442,0.7474,3258.3,3257.5,0.03069577]
[1736477409666,0.7474,3258.9,3257.9,3.06936]
[1736477409805,0.7474,3258.9,3258.0,3.09995978]
[1736477410136,2.29610367,3258.7,3258.0,3.06927]
[1736477410944,2.29610367,3258.7,3257.7,3.10033978]
[1736477411150,2.29610367,3258.7,3257.9,3.06937]
[1736477411355,2.29610367,3258.7,3257.7,3.06965]
[1736477411356,2.29610367,3258.7,3258.0,3.09999979]
[1736477412413,0.7474,3258.8,3258.0,0.03068979]
[1736477412608,0.7474,3258.8,3257.8,0.7901]
[1736477412812,5.28,3259.0,3258.6,3.06879]
[1736477413650,5.28,3259.0,3258.4,3.06896]
[1736477413849,7.57610367,3259.0,3258.2,3.06909]
[1736477414053,7.57610367,3259.0,3257.9,3.7874]
[1736477414253,7.57610367,3259.0,3258.3,3.06902]
[1736477414727,5.28,3259.0,3258.4,3.06896]
[1736477414930,5.28,3259.0,3258.2,0.03068849]
[1736477415132,0.76288363,3260.0,3258.2,0.03068849]
[1736477415133,0.7474,3259.8,3258.5,0.7874]
[1736477415343,0.7474,3259.8,3259.1,3.06829]
[1736477415514,0.60274,3259.7,3259.1,3.06829]
[1736477416487,2.29610367,3259.6,3258.8,3.06852]
[1736477416654,0.7474,3259.5,3258.8,3.06852]
[1736477418908,0.7474,3259.5,3258.6,3.31179]
[1736477419124,0.30435037,3259.4,3258.6,3.31179]
[1736477419341,0.7474,3258.9,3258.1,3.06925]
[1736477419625,0.7474,3258.9,3258.2,3.06915]
[1736477419843,0.7474,3258.9,3258.4,3.06898]
[1736477420646,0.7474,3258.9,3257.9,4.13479]
[1736477420806,0.7474,3258.9,3258.2,3.06913]
[1736477421496,1.05175037,3258.9,3258.2,3.06913]
[1736477421751,1.05175037,3258.9,3257.9,0.243]
[1736477421909,2.29610367,3258.7,3257.9,3.06938]
[1736477422864,0.7474,3258.2,3257.5,3.06979]
[1736477423170,0.30435037,3258.1,3257.5,3.06979]
[1736477423479,0.7474,3258.2,3257.5,3.06979]
[1736477424857,0.7474,3258.2,3257.3,3.31296]
[1736477425650,0.7474,3258.2,3257.7,3.06963]
[1736477426141,0.7474,3258.2,3257.7,3.06957]
[1736477427750,0.7474,3258.2,3257.4,3.06987]
[1736477428135,0.7474,3258.2,3257.4,0.66898838]
[1736477428657,0.7474,3258.2,3257.6,3.06967]
[1736477429021,0.7474,3258.2,3257.8,3.06954]
[1736477432321,0.7474,3258.2,3257.3,3.31297]
[1736477432635,0.0075,3259.3,3258.0,0.766]
[1736477432636,0.7474,3258.8,3258.0,0.766]
[1736477432969,0.7474,3258.8,3258.4,3.06896]
[1736477433168,0.7474,3258.8,3258.1,0.03068746]
[1736477433458,0.7474,3258.8,3258.5,3.06889]
[1736477433833,0.7474,3258.8,3258.7,3.0687]
[1736477434030,0.7474,3259.2,3258.7,3.0687]
[1736477435558,3.04350367,3259.2,3258.5,3.375759]
[1736477435763,2.29610367,3259.2,3258.3,3.06906]
[1736477435925,0.7474,3259.1,3258.3,3.06906]
[1736477436120,0.7474,3259.1,3258.2,0.243]
[1736477436362,2.29610367,3258.9,3258.2,0.243]
[1736477436662,0.7474,3258.8,3258.2,0.243]
[1736477437369,0.7474,3258.5,3257.9,3.06939]
[1736477437571,0.7474,3258.5,3257.7,3.06962]
[1736477437770,0.7474,3258.5,3257.9,3.06946]
[1736477441372,0.7474,3258.5,3257.7,3.06962]
[1736477441552,2.29610367,3258.3,3257.5,3.06982]
[1736477441727,0.7474,3258.2,3257.5,3.06982]
[1736477442885,0.7474,3258.2,3257.6,3.06974]
[1736477443521,0.7474,3258.2,3257.9,3.06945]
[1736477444011,0.7474,3258.2,3257.6,3.06967]
[1736477444189,0.7474,3258.2,3257.6,0.306967]
[1736477444396,0.7474,3258.2,3257.8,3.06955]
[1736477447145,0.7474,3258.2,3257.5,3.06975]
[1736477447484,0.7474,3258.2,3257.3,3.313]
[1736477448216,0.7474,3258.2,3257.4,3.06992]
[1736477449601,0.7474,3258.2,3257.2,0.243]
[1736477449800,0.30435037,3258.1,3257.2,0.243]
[1736477450030,0.7474,3258.2,3257.2,0.243]
[1736477450829,0.7474,3258.2,3257.3,3.07002]
[1736477452738,2.29610367,3258.0,3257.1,3.07018]
[1736477452912,0.7474,3257.6,3257.2,3.07008]
[1736477453228,5.28,3258.2,3257.2,3.07008]
[1736477453229,0.7474,3258.1,3257.7,3.06963]
[1736477454934,0.7474,3258.1,3257.7,3.06964]
[1736477455258,0.7474,3258.1,3257.4,0.03069478]
[1736477455405,0.7474,3258.5,3258.1,3.06924]
[1736477456163,0.7474,3258.5,3258.2,3.06917]
[1736477456372,0.7474,3258.9,3258.0,3.06936]
[1736477456654,0.7474,3258.9,3258.6,3.06874]
[1736477458049,0.7474,3258.9,3258.3,0.03068601]
[1736477458347,0.7474,3258.9,3258.4,3.06896]
[1736477459345,0.7474,3258.9,3257.9,0.7687]
[1736477459648,0.30435037,3258.8,3258.1,3.06919]
[1736477460505,0.7474,3258.7,3257.9,3.06943]
[1736477460706,0.7474,3258.6,3257.9,3.06943]
[1736477460938,0.7474,3258.3,3257.8,0.243]
[1736477461102,0.7474,3258.2,3257.8,0.243]
[1736477461319,2.29610367,3258.1,3257.2,3.31311]
[1736477461524,0.7474,3258.0,3257.2,3.31311]
[1736477462022,0.7474,3258.0,3257.3,3.07001]
[1736477464248,5.28,3258.2,3256.8,0.7687]
[1736477464249,2.29610367,3257.8,3257.0,3.07024]
[1736477464548,0.7474,3257.7,3257.0,3.07024]
[1736477465955,0.7474,3257.6,3256.8,3.07049]
[1736477466106,0.7474,3257.6,3256.9,3.07036]
[1736477467305,0.7474,3257.6,3256.7,0.243]
[1736477467562,0.7474,3256.8,3256.1,0.8042]
[1736477467911,0.7474,3256.8,3256.2,3.07104]
[1736477468345,0.7474,3256.8,3256.3,3.07095]
[1736477469711,0.7474,3256.8,3255.9,0.243]
[1736477469912,2.29610367,3256.6,3255.6,3.07156]
[1736477470210,0.7474,3256.5,3255.6,3.07156]
[1736477470614,0.7474,3256.1,3255.5,0.243]
[1736477472051,3.0,3256.7,3255.2,3.07199]
[1736477472052,2.29610367,3255.9,3255.2,3.07199]
[1736477472655,2.29610367,3255.9,3255.3,3.0719]
[1736477472859,0.7474,3256.0,3255.4,0.7933]
[1736477473056,0.7474,3256.0,3255.7,3.07152]
[1736477473590,0.7474,3256.0,3255.5,3.07163]
[1736477473794,0.7474,3256.0,3255.4,0.7933]
[1736477473965,0.7474,3256.0,3255.6,3.07158]
[1736477475077,0.7474,3256.0,3255.1,1.0341]
[1736477475252,0.7474,3256.0,3255.3,3.0719]
[1736477475452,2.29610367,3255.9,3255.3,3.0719]
[1736477475647,0.7474,3255.8,3255.1,0.243]
[1736477476175,0.7474,3255.8,3255.4,3.07181]
[1736477476797,0.7474,3255.8,3255.1,3.31502]
[1736477476973,0.7474,3255.8,3255.2,0.631502]
[1736477477305,0.7474,3255.7,3255.0,3.0]
[1736477477858,0.7474,3255.7,3254.9,3.07227]
[1736477478053,5.28,3255.8,3254.9,3.07227]
[1736477478054,0.7474,3255.5,3254.9,3.07227]
[1736477478251,0.7474,3255.5,3254.6,0.243]
[1736477478500,0.7474,3255.5,3255.0,3.07214]
[1736477478699,0.7474,3255.5,3255.1,3.0721]
[1736477480201,0.7474,3255.5,3255.2,3.07199]
[1736477480503,0.7474,3255.5,3255.3,3.0719]
[1736477481007,0.7474,3255.5,3253.9,3.07317]
[1736477481008,0.7474,3255.3,3253.9,3.07317]
[1736477481303,2.29610367,3255.4,3253.7,0.243]
[1736477481304,0.7474,3254.6,3253.7,0.243]
[1736477481521,0.7474,3254.6,3254.3,3.07285]
[1736477482163,0.7474,3254.6,3254.1,3.07302]
[1736477482673,0.7474,3254.6,3253.8,0.331643]
[1736477482674,0.7474,3254.6,3254.0,3.07313]
[1736477482859,0.7474,3254.6,3254.3,3.07284]
[1736477483388,0.7474,3254.6,3254.2,3.07294]
[1736477484622,0.84188363,3255.7,3254.4,3.07276]
[1736477484623,0.7474,3254.9,3254.4,3.07276]
[1736477484793,0.7474,3254.9,3254.3,0.8218]
[1736477484996,0.7474,3254.9,3254.5,3.07261]
[1736477485598,0.7474,3254.9,3254.6,3.07257]
[1736477485929,0.7474,3254.9,3254.6,3.379827]
[1736477486085,7.57610367,3255.9,3254.9,3.07226]
[1736477486433,2.29610367,3255.6,3254.9,3.07226]
[1736477488199,2.29610367,3255.6,3255.0,3.07216]
[1736477488522,0.7474,3255.8,3255.0,3.461556]
[1736477489084,0.7474,3255.8,3255.1,0.03071888]
[1736477489415,0.7474,3255.8,3255.2,3.07195]
[1736477490134,0.7474,3255.8,3255.0,0.389396]
[1736477490285,2.29610367,3255.6,3255.0,0.389396]
[1736477490786,0.7474,3255.8,3254.8,0.03071879]
[1736477491230,0.7474,3255.8,3255.0,3.0]
[1736477491441,0.7474,3255.8,3255.1,0.03071877]
[1736477491648,0.7474,3256.1,3255.5,3.07171]
[1736477493738,0.7474,3256.1,3255.2,3.07191]
[1736477493900,0.7474,3256.1,3255.3,0.607191]
[1736477494244,2.29610367,3255.9,3255.1,3.0]
[1736477494535,2.29610367,3255.9,3255.1,3.796]
[1736477494940,0.7474,3256.1,3255.6,3.07161]
[1736477495101,0.7474,3256.1,3255.2,3.072]
[1736477495305,0.7474,3256.1,3255.4,3.07172]
[1736477495505,0.7474,3256.1,3255.4,3.378892]
[1736477498603,0.7474,3256.1,3255.5,3.07171]
[1736477500287,2.29610367,3255.9,3254.9,1.231306]
[1736477500549,0.7474,3255.8,3255.0,3.07219]
[1736477501026,2.29610367,3255.6,3254.8,3.07235]
[1736477501201,2.29610367,3255.3,3254.6,3.07256]
[1736477501585,2.29610367,3255.3,3254.3,1.231508]
[1736477501586,2.29610367,3255.0,3254.3,3.07276]
[1736477501789,0.7474,3254.9,3254.1,0.995]
[1736477502031,0.7474,3254.9,3254.1,3.31601]
[1736477502231,2.29610367,3254.7,3254.1,3.31601]
[1736477503465,2.29610367,3254.7,3253.7,0.752]
[1736477503466,0.7474,3254.6,3253.9,3.0732]
[1736477503661,2.29610367,3254.4,3253.3,3.82571]
[1736477503860,2.29610367,3254.4,3253.4,0.243]
[1736477504170,2.29610367,3254.4,3253.6,3.07346]
[1736477504331,0.7474,3254.3,3253.4,0.243]
[1736477504534,2.29610367,3254.1,3253.4,0.243]
[1736477505322,2.29610367,3254.1,3253.4,3.31665]
[1736477505765,2.29610367,3254.1,3253.4,3.07365]
[1736477506632,0.7474,3254.0,3253.4,3.07365]
[1736477507163,2.29610367,3253.8,3253.1,3.07392]
[1736477507965,2.29610367,3253.5,3252.8,3.07421]
[1736477508662,0.7474,3253.7,3253.3,3.07376]
[1736477509235,0.7474,3253.7,3252.6,0.7746]
[1736477509443,0.7474,3253.7,3253.1,3.07398]
[1736477509637,1.35175037,3253.7,3253.1,3.07398]
[1736477509864,0.7474,3253.7,3252.7,0.03073692]
[1736477510064,0.7474,3253.7,3253.2,3.07388]
[1736477510653,0.7474,3254.3,3253.3,0.751]
[1736477510906,0.7474,3254.3,3253.6,3.07347]
[1736477511103,1.05175037,3254.3,3253.6,3.07347]
[1736477511456,2.29610367,3254.2,3253.4,3.07369]
[1736477512090,2.29610367,3253.9,3253.4,3.07369]
[1736477512355,2.29610367,3253.9,3253.3,0.243]
[1736477512757,0.7474,3254.1,3253.5,3.0736]
[1736477513591,1.0821854,3254.1,3253.3,0.243]
[1736477514000,0.7474,3253.8,3253.3,0.243]
[1736477516300,0.7474,3253.8,3253.4,3.07366]
[1736477516995,0.7474,3253.8,3253.5,3.07356]
[1736477517197,0.7474,3254.1,3253.5,3.07356]
[1736477517397,3.7474,3254.1,3253.5,3.07356]
[1736477518379,4.87975037,3254.1,3253.5,3.07356]
[1736477519205,0.7474,3254.1,3253.6,3.07349]
[1736477520993,0.7474,3254.1,3253.7,3.07341]
[1736477522304,6.0274,3254.1,3253.7,3.07341]
[1736477522700,6.0274,3254.1,3253.5,3.07358]
[1736477523732,6.0274,3254.1,3253.8,3.0733]
[1736477523936,6.0274,3254.1,3253.6,3.07351]
[1736477524096,6.63014,3254.1,3253.4,3.0737]
[1736477524652,6.63014,3254.1,3253.2,3.07386]
[1736477524792,0.7474,3253.5,3252.5,3.86897]
[1736477524988,2.29610367,3253.3,3252.6,0.243]
[1736477525301,5.28,3253.6,3253.1,3.07398]
[1736477525499,3.0,3253.7,3253.3,3.07379]
[1736477526004,6.0274,3253.8,3253.0,0.03073886]
[1736477526005,6.0274,3253.8,3253.6,3.07348]
[1736477526206,5.28,3253.8,3253.3,0.03073401]
[1736477526392,5.28,3253.8,3253.7,3.07342]
[1736477527307,3.0,3254.5,3253.7,3.07342]
[1736477527510,5.28,3254.7,3254.4,3.07273]
[1736477527736,0.7474,3255.0,3254.5,3.07264]
[1736477528497,5.28,3255.2,3254.3,0.03072486]
[1736477528696,5.28,3255.2,3254.7,3.07246]
[1736477529117,5.28,3255.2,3254.5,3.07265]
[1736477529660,6.11235037,3255.2,3254.3,3.07283]
[1736477529956,3.7474,3255.1,3254.4,3.07275]
[1736477530429,2.29610367,3255.0,3254.2,3.31594]
[1736477530761,0.7474,3254.9,3254.0,3.07312]
[1736477530961,1.35175037,3254.9,3254.0,3.07312]
[1736477531135,1.35175037,3254.9,3254.1,3.07302]
[1736477531533,1.35175037,3254.9,3253.9,0.243]
[1736477531730,1.35175037,3254.9,3254.2,3.0729]
[1736477531947,3.0,3254.8,3254.0,3.07313]
[1736477532255,0.44811467,3254.7,3254.0,3.07313]
[1736477532644,3.0,3254.3,3253.3,0.7945]
[1736477532877,5.29610367,3254.1,3253.3,3.0738]
[1736477533195,5.29610367,3254.1,3253.4,3.0737]
[1736477533341,5.29610367,3254.1,3253.5,3.07355]
[1736477533856,5.29610367,3254.1,3253.0,3.86858]
[1736477533857,6.12845404,3254.1,3253.0,3.86858]
[1736477534057,6.12845404,3254.1,3252.9,0.0075]
[1736477534058,3.7474,3254.0,3253.1,3.07399]
[1736477534257,0.7474,3254.0,3253.2,3.07389]
[1736477534982,0.7474,3254.0,3253.4,3.07362]
[1736477535344,0.7474,3254.0,3253.2,3.07387]
[1736477535345,1.35175037,3254.0,3253.2,3.07387]
[1736477537303,5.28,3253.9,3253.2,3.07387]
[1736477537658,6.04350367,3253.8,3252.9,3.07411]
[1736477537997,0.7474,3253.7,3252.9,3.07411]
[1736477538176,3.0,3253.5,3252.9,3.07411]
[1736477538378,3.0,3253.5,3252.7,0.243]
[1736477538575,5.72811467,3253.6,3253.0,3.07407]
[1736477539502,5.72811467,3253.6,3252.8,3.07426]
[1736477540501,5.72811467,3253.6,3253.0,3.07408]
[1736477542610,5.72811467,3253.6,3252.7,3.31727]
[1736477542844,6.69105514,3253.5,3252.7,3.07427]
[1736477543296,11.97105514,3253.5,3252.7,3.07427]
[1736477544148,0.7474,3253.1,3252.2,0.243]
[1736477544266,1.53654927,3253.1,3252.2,0.243]
[1736477544472,0.7474,3253.1,3252.3,0.03074255]
[1736477544780,0.7474,3253.1,3252.7,3.07433]
[1736477545498,2.29610367,3252.8,3252.2,3.07481]
[1736477545812,0.7474,3252.7,3252.2,3.07481]
[1736477548616,0.7474,3252.7,3251.7,3.07523]
[1736477548617,0.7474,3252.7,3251.9,3.07504]
[1736477549017,0.7474,3252.7,3251.6,0.9979]
[1736477549018,7.57610367,3252.5,3251.7,3.07529]
[1736477549174,0.7474,3252.4,3251.5,3.07548]
[1736477549495,0.7474,3252.1,3251.3,3.07567]
[1736477550074,7.57610367,3251.9,3251.1,3.31887]
[1736477550329,2.29610367,3251.6,3250.9,3.07606]
[1736477551190,2.29610367,3251.6,3250.9,3.07602]
[1736477551675,0.7474,3251.5,3250.6,3.07627]
[1736477552302,2.29610367,3251.3,3250.6,3.07627]
[1736477552615,2.29610367,3251.3,3250.5,0.27376142]
[1736477552821,3.7474,3251.5,3250.5,0.27376142]
[1736477553008,0.7474,3251.5,3251.2,3.07576]
[1736477553514,0.7474,3251.5,3250.8,0.243]
[1736477553681,0.7474,3251.5,3251.1,3.07587]
[1736477554523,2.29610367,3251.3,3250.8,0.243]
[1736477554878,2.29610367,3251.3,3250.8,3.31908]
[1736477555095,0.7474,3251.5,3250.9,3.07606]
[1736477555320,0.7474,3251.5,3250.8,0.243]
[1736477555524,0.7474,3251.5,3251.0,3.07595]
[1736477556005,1.05175037,3251.5,3250.8,0.243]
[1736477556217,1.05175037,3251.5,3250.7,3.07617]
[1736477556378,2.29610367,3251.3,3250.5,3.07638]
[1736477556819,2.29610367,3251.3,3250.4,0.243]
[1736477557126,2.29610367,3251.3,3250.6,3.07633]
[1736477557342,2.63930477,3251.3,3250.6,3.07633]
[1736477557482,7.91930477,3251.3,3250.6,3.07633]
[1736477557684,7.91930477,3251.3,3250.0,0.7802]
[1736477557685,0.7474,3251.2,3250.3,3.07654]
[1736477557979,0.7474,3251.1,3250.4,3.07654]
[1736477558920,3.04350367,3251.0,3250.4,3.07654]
[1736477560242,3.04350367,3251.0,3249.9,3.07694]
[1736477560243,3.04350367,3251.0,3250.1,3.88222]
[1736477560410,0.7474,3251.0,3250.2,3.49879128]
[1736477560743,0.7474,3251.0,3250.8,3.07614]
[1736477564250,0.7474,3251.0,3250.6,3.07634]
[1736477564401,0.7474,3251.0,3250.7,3.07625]
[1736477565857,8.32350367,3251.0,3249.7,0.8318]
[1736477565998,0.83235037,3250.9,3250.2,3.07671]
[1736477566403,0.83235037,3250.9,3249.7,1.0748]
[1736477566404,0.83235037,3250.9,3250.3,3.07662]
[1736477567125,6.0274,3251.0,3249.8,0.03076632]
[1736477567369,6.0274,3251.0,3250.6,3.07632]
[1736477568055,6.0274,3251.0,3250.0,0.243]
[1736477568056,8.32350367,3251.0,3250.0,0.243]
[1736477568236,0.7474,3250.6,3250.0,3.07691]
[1736477568419,1.05175037,3250.6,3250.0,3.07691]
[1736477570370,0.7474,3250.5,3249.8,3.07709]
[1736477570532,2.29610367,3250.4,3249.8,3.07709]
[1736477570725,0.7474,3250.3,3249.6,3.07729]
[1736477571060,0.7474,3250.3,3249.7,3.07716]
[1736477573477,0.7474,3250.3,3249.4,0.27377096]
[1736477573659,0.7474,3250.3,3249.8,3.07706]
[1736477574064,0.7474,3250.3,3250.0,3.07688]
[1736477576275,0.7474,3250.3,3249.4,0.243]
[1736477576505,0.7474,3250.3,3249.7,3.07719]
[1736477577695,0.7474,3250.3,3249.8,3.0771]
[1736477578947,0.7474,3250.3,3249.6,3.07728]
[1736477579253,2.29610367,3250.4,3249.4,3.07746]
[1736477579254,0.7474,3250.1,3249.4,3.07746]
[1736477579997,0.7474,3250.1,3249.8,3.0771]
[1736477580296,0.7474,3250.1,3249.4,3.07747]
[1736477580467,0.7474,3250.1,3249.5,3.07738]
[1736477581054,0.7474,3250.1,3249.6,3.07727]
[1736477581362,0.7474,3250.1,3249.7,3.07715]
[1736477581677,0.7474,3250.1,3249.4,0.03077244]
[1736477581678,0.7474,3250.1,3249.8,3.0771]
[1736477582588,5.28,3250.0,3249.3,0.1664801]
[1736477582890,0.83235037,3249.9,3249.3,0.1664801]
[1736477583719,3.7474,3249.4,3249.3,0.1664801]
[1736477583998,13.0803386,3249.4,3249.3,0.1664801]
[1736477584844,13.45535696,3249.4,3249.3,0.1664801]
[1736477585092,12.90535696,3249.4,3249.3,0.1664801]
[1736477585263,9.4786643,3249.4,3249.3,0.1664801]
[1736477585796,9.4711643,3249.4,3249.3,0.1664801]
[1736477586986,13.5241029,3249.4,3249.3,0.1664801]
[1736477587313,12.9741029,3249.4,3249.3,0.1664801]
[1736477587668,9.8891129,3249.4,3249.3,0.1664801]
[1736477588005,6.4453486,3249.4,3249.3,0.1664801]
[1736477588192,6.0274,3249.4,3249.3,0.1664801]
[1736477588495,6.4453486,3249.8,3249.3,0.1664801]
[1736477588727,0.4179486,3249.7,3249.3,0.1664801]
[1736477588853,3.4179486,3249.7,3249.3,0.1664801]
[1736477589053,4.59209383,3249.7,3249.3,0.1664801]
[1736477589266,3.7474,3249.4,3249.3,0.1664801]
[1736477590811,9.0274,3249.4,3249.3,0.1664801]
[1736477591811,12.10489,3249.4,3249.3,0.1664801]
[1736477592022,18.0803386,3249.4,3249.3,0.1664801]
[1736477592221,18.89969714,3249.4,3249.3,0.1664801]
[1736477595471,18.90719714,3249.4,3249.3,0.1664801]
[1736477595672,13.61602714,3249.4,3249.3,0.1664801]
[1736477595916,18.33207714,3249.4,3249.3,0.1664801]
[1736477596213,19.17352714,3249.4,3249.3,0.1664801]
[1736477596417,18.78700714,3249.4,3249.3,0.1664801]
[1736477596718,14.16602714,3249.4,3249.3,0.1664801]
[1736477596944,13.79100878,3249.4,3249.3,0.1664801]
[1736477598787,13.24100878,3249.4,3249.3,0.1664801]
[1736477600451,5.28,3249.4,3249.3,0.1664801]
[1736477600994,8.28,3249.4,3249.3,0.1664801]
[1736477603301,5.28,3249.4,3249.3,0.1664801]
[1736477606136,8.28,3249.8,3249.3,0.1664801]
[1736477607431,8.28,3249.8,3249.4,0.7567]
[1736477609534,5.28,3249.8,3249.4,1.187547]
[1736477609841,5.28,3249.8,3249.4,3.83417]
[1736477610490,5.28,3249.8,3249.5,3.07739]
[1736477611590,5.28,3249.8,3249.7,3.0772]
[1736477612551,5.28,3249.8,3249.5,3.07738]
[1736477614959,5.28,3249.8,3249.4,0.7567]
[1736477615130,3.0,3250.2,3249.4,0.7567]
[1736477615329,4.128,3250.2,3249.4,0.7567]
[1736477616151,4.128,3250.2,3249.3,3.2440301]
[1736477616152,1.1653486,3250.1,3249.3,3.2440301]
[1736477616460,3.0,3249.7,3249.3,0.1664801]
[1736477616625,3.0,3249.5,3249.3,0.1664801]
[1736477617236,11.35749,3249.4,3249.3,0.1664801]
[1736477617463,12.11430541,3249.4,3249.3,0.1664801]
[1736477618726,12.86170541,3249.4,3249.3,0.1664801]
[1736477618927,15.49503541,3249.4,3249.3,0.1664801]
[1736477619141,14.94085541,3249.4,3249.3,0.1664801]
[1736477619338,15.49835541,3249.4,3249.3,0.1664801]
[1736477619544,15.91630401,3249.4,3249.3,0.1664801]
[1736477621383,15.92380401,3249.4,3249.3,0.1664801]
[1736477621539,15.88087377,3249.4,3249.3,1e-08]
[1736477621740,14.21967237,3249.4,3249.3,1e-08]
[1736477623655,5.28,3248.1,3247.4,3.07931]
[1736477623856,3.0,3248.0,3247.2,4.11685]
[1736477624868,3.0,3248.0,3247.2,3.87385]
[1736477625028,5.29610367,3248.0,3247.3,3.07946]
[1736477625226,10.57610367,3248.0,3247.2,0.7943]
[1736477625426,11.10571404,3248.0,3247.2,0.7943]
[1736477627368,2.29610367,3247.7,3247.2,0.7943]
[1736477628089,10.57610367,3248.0,3247.2,0.7943]
[1736477628231,0.89,3246.8,3244.4,0.31756785]
[1736477628433,2.29610367,3246.1,3244.5,3.08213]
[1736477628665,0.03079606,3246.0,3245.5,3.08111]
[1736477628873,4.29610367,3246.9,3245.7,3.08099]
[1736477629036,2.29610367,3247.3,3246.0,0.7927]
[1736477629386,2.1522651,3247.4,3246.1,0.03080736]
[1736477629387,0.7474,3247.4,3246.1,0.03080736]
[1736477629572,1.05175037,3247.4,3246.4,3.08031]
[1736477630672,3.07911,3247.7,3246.5,0.03080082]
[1736477630874,3.07911,3247.7,3246.6,0.7927]
[1736477631177,3.0,3247.6,3246.6,0.7927]
[1736477633015,0.03079606,3247.5,3246.6,1.0507]
[1736477633307,3.03079606,3247.5,3246.6,0.7927]
[1736477633604,5.29610367,3247.3,3246.6,0.7927]
[1736477634515,3.0,3247.3,3246.6,0.7927]
[1736477637112,3.0,3247.5,3246.6,3.87282]
[1736477638341,2.29610367,3247.2,3246.6,0.7927]
[1736477638527,0.03079606,3247.1,3246.6,0.7927]
[1736477639732,2.29610367,3247.2,3246.6,0.7927]
[1736477640615,5.29610367,3247.5,3246.6,0.7927]
[1736477640820,5.29610367,3247.5,3246.8,3.07994]
[1736477641505,5.29610367,3247.5,3246.9,0.03079734]
[1736477641849,5.29610367,3247.5,3246.3,0.258]
[1736477641850,2.29610367,3247.8,3247.0,0.8304]
[1736477642019,2.29610367,3248.1,3247.1,0.03079344]
[1736477642224,0.7474,3248.2,3247.3,3.07938]
[1736477642225,2.29610367,3247.8,3247.3,3.07938]
[1736477642441,2.29610367,3247.8,3247.3,3.33738]
[1736477644239,2.32689973,3248.1,3247.3,0.258]
[1736477644438,2.29610367,3248.1,3247.5,3.07926]
[1736477645521,2.29610367,3248.1,3247.6,0.7776]
[1736477645732,0.03079606,3248.0,3247.6,0.7776]
[1736477646137,2.29610367,3248.1,3247.6,0.7776]
[1736477646873,0.03079606,3248.0,3247.6,0.7776]
[1736477647165,2.29610367,3248.1,3247.6,0.7776]
[1736477647527,0.03079606,3248.0,3247.6,0.7776]
[1736477648340,2.29610367,3247.8,3247.6,0.7776]
[1736477648661,2.29610367,3247.8,3247.3,1.0578]
[1736477648862,2.29610367,3247.8,3247.3,0.7998]
[1736477649065,2.29610367,3247.8,3247.4,0.258]
[1736477650075,2.29610367,3247.8,3247.3,1.0578]
[1736477650432,2.29610367,3247.8,3247.3,4.13726]
[1736477652574,2.29610367,3247.5,3247.1,0.258]
[1736477653079,2.29610367,3247.5,3246.9,4.14281]
[1736477653800,2.29610367,3247.5,3246.9,3.88481]
[1736477653987,2.29610367,3247.5,3247.0,0.258]
[1736477654507,3.03079606,3247.7,3247.0,0.258]
[1736477654687,3.0,3247.7,3247.0,3.36854441]
[1736477655371,0.03079606,3247.6,3247.0,3.33775]
[1736477656262,3.0,3247.7,3247.1,3.07964]
[1736477656466,2.29610367,3248.1,3247.1,0.03079441]
[1736477656780,0.03079606,3248.0,3247.5,0.8304]
[1736477657566,2.29610367,3247.8,3247.5,0.8304]
[1736477657768,2.29610367,3247.8,3247.3,0.7693]
[1736477658403,0.03079606,3247.7,3247.0,0.262]
[1736477659070,2.52879364,3247.8,3247.0,0.29279555]
[1736477659269,0.03079606,3247.7,3247.1,3.07964]
[1736477659500,2.52879364,3247.8,3247.1,3.07964]
[1736477659705,2.52879364,3247.8,3247.2,3.07954]
[1736477659706,2.29610367,3247.8,3247.2,3.07954]
[1736477660072,5.29610367,3248.1,3247.3,3.11026336]
[1736477660303,2.29610367,3247.8,3247.1,0.8267]
[1736477660489,0.03079606,3247.7,3247.1,3.90635]
[1736477661643,0.03079606,3247.7,3247.2,3.07956]
[1736477663222,0.03079606,3247.7,3247.2,3.34156]
[1736477666434,2.29610367,3247.8,3247.3,3.07947]
[1736477666737,5.29610367,3248.1,3247.4,3.0793]
[1736477666926,0.03079606,3248.0,3247.4,3.0793]
[1736477675104,3.0,3248.1,3247.3,0.03079161]
[1736477675252,3.0,3248.1,3247.7,3.07909]
[1736477676184,3.0,3248.1,3247.8,3.07898]
[1736477676390,3.0,3248.1,3247.5,0.03079161]
[1736477676391,7.57610367,3248.4,3247.9,3.0789]